Workbook

Sheet Evaluation (hidden)
C4: Offer / Plant / Year | D4: Mine | E4: Quantity | G4: Coal Price | H4: Transportation | K4: Offered Quality | O4: Quality Adjusted Delivered Pricing
E5: Tons | F5: BTU | G5: Coal Price | H5: River / Rail | I5: MP / District | J5: Rate | K5: Btu | L5: lbs. SO2 | M5: Sulfur % | N5: Ash % | O5: Quality Adj. | P5: Quality Adjusted | Q5: Delivered | R5: Comments
C6: 2020 | P6: Delivered Cost | Q6: $MMBTU
J7: =GETPIVOTDATA("ROUND(AVG(RATE),2)",#REF!,"PILE",$C$5,"ORIGIN",I7,"EXTRACT(YEARFROMMONTH)",$C$6) ->  | O7: =+((1-$E$12)*(L7*K7*$E$13)/1000000)+(($E$12*L7*K7*$E$14)/1000000) ->  | P7: =G7+J7+O7 ->  | Q7: =P7/(K7/500) -> 
C11: =IF(ISNA(VLOOKUP(C5,Pile,2,0)),"",VLOOKUP(C5,Pile,2,0)) -> 
C12: FGD Removal Efficiency | E12: =IF(ISNA(VLOOKUP(C11,FGD,2,0)),0,VLOOKUP(C11,FGD,2,0)) -> 
C13: SO2 Allowance Cost | E13: =SO2_Credit -> 
C14: Removal Cost $/Ton | E14: =IF(ISNA(VLOOKUP(C11,FGD,3,0)),0,VLOOKUP(C11,FGD,3,0)) -> 
C15: Highly Sensitive and Confidential

Sheet Mitchell High Sulfur 2025
B1: Mitchell High Sulfur - 2024 NAPP
C4: Offer | D4: Mine | E4: Quantity | F4: Coal Price | G4: Severance Tax Discount | H4: Coal Price | K4: Transportation | N4: Offered Quality | R4: Quality Adjusted Delivered Pricing
E5: Tons | F5: As Offered | H5: Less Severance Tax | I5: Severance Tax Rate | J5: Coal Source - State | K5: River / Rail | L5: MP / District | M5: Rate | N5: Btu | O5: lbs. SO2 | P5: Sulfur % | Q5: Ash % | R5: Quality Adj. | S5: Quality Adjusted | T5: Delivered | U5: Comments
S6: Delivered Cost | T6: $MMBTU
C7: Alliance Coal, LLC. | D7: Tunnel Ridge Mine | E7: 1500000 | F7: 80 | G7: =-F7*I7 -> -2.4 | H7: =F7+G7 -> 77.6 | I7: 0.03 | J7: WV | K7: Barge | L7: Tunnel Ridge LO - Tridelphia, WV | M7: 0.95 | N7: 12600 | O7: 5.6 | P7: 0.0353 | Q7: 0.0925 | R7: =+((1-$E$12)*(O7*N7*$E$13)/1000000)+(($E$12*O7*N7*$E$14)/1000000) -> 13.47787368 | S7: =F7+M7+R7 -> 94.42787368 | T7: =S7/(N7/500) -> 3.747137845 | U7: Proposed purchase; Contract in negotiation
C12: FGD Removal Efficiency | E12: 0.9829
C13: SO2 Allowance Cost | E13: 1.5
C14: Removal Cost $/Ton | E14: 194.31
C15: Highly Sensitive and Confidential

Sheet Mitchell High Sulfur 2024
B1: Mitchell High Sulfur - 2024 NAPP
C4: Offer | D4: Mine | E4: Quantity | F4: Coal Price | G4: Severance Tax Discount | H4: Coal Price | K4: Transportation | N4: Offered Quality | R4: Quality Adjusted Delivered Pricing
E5: Tons | F5: As Offered | H5: Less Severance Tax | I5: Severance Tax Rate | J5: Coal Source - State | K5: River / Rail | L5: MP / District | M5: Rate | N5: Btu | O5: lbs. SO2 | P5: Sulfur % | Q5: Ash % | R5: Quality Adj. | S5: Quality Adjusted | T5: Delivered | U5: Comments
S6: Delivered Cost | T6: $MMBTU
C7: Alliance Coal, LLC. | D7: Tunnel Ridge Mine | E7: 1500000 | F7: 85 | G7: =-F7*I7 -> -2.55 | H7: =F7+G7 -> 82.45 | I7: 0.03 | J7: WV | K7: Barge | L7: Tunnel Ridge LO - Tridelphia, WV | M7: 0.94 | N7: 12600 | O7: 5.6 | P7: 0.0353 | Q7: 0.0925 | R7: =+((1-$E$12)*(O7*N7*$E$13)/1000000)+(($E$12*O7*N7*$E$14)/1000000) -> 13.47787368 | S7: =F7+M7+R7 -> 99.41787368 | T7: =S7/(N7/500) -> 3.945153718 | U7: Proposed purchase; Contract in negotiation
C12: FGD Removal Efficiency | E12: 0.9829
C13: SO2 Allowance Cost | E13: 1.5
C14: Removal Cost $/Ton | E14: 194.31
C15: Highly Sensitive and Confidential

Sheet Mitchell High Sulfur 2023
B1: Mitchell High Sulfur - 2023 NAPP
C4: Offer | D4: Mine | E4: Quantity | F4: Coal Price | G4: Severance Tax Discount | H4: Coal Price | K4: Transportation | N4: Offered Quality | R4: Quality Adjusted Delivered Pricing
E5: Tons | F5: As Offered | H5: Less Severance Tax | I5: Severance Tax Rate | J5: Coal Source - State | K5: River / Rail | L5: MP / District | M5: Rate | N5: Btu | O5: lbs. SO2 | P5: Sulfur % | Q5: Ash % | R5: Quality Adj. | S5: Quality Adjusted | T5: Delivered | U5: Comments
S6: Delivered Cost | T6: $MMBTU
C12: FGD Removal Efficiency | E12: 0.9829
C13: SO2 Allowance Cost | E13: 1.5
C14: Removal Cost $/Ton | E14: 194.31
C15: Highly Sensitive and Confidential

Sheet Mitchell High Sulfur 2022
B1: Mitchell High Sulfur - 2022 NAPP
C4: Offer | D4: Mine | E4: Quantity | F4: Coal Price | G4: Severance Tax Discount | H4: Coal Price | K4: Transportation | N4: Offered Quality | R4: Quality Adjusted Delivered Pricing
E5: Tons | F5: As Offered | H5: Less Severance Tax | I5: Severance Tax Rate | J5: Coal Source - State | K5: River / Rail | L5: MP / District | M5: Rate | N5: Btu | O5: lbs. SO2 | P5: Sulfur % | Q5: Ash % | R5: Quality Adj. | S5: Quality Adjusted | T5: Delivered | U5: Comments
S6: Delivered Cost | T6: $MMBTU
C12: FGD Removal Efficiency | E12: 0.9829
C13: SO2 Allowance Cost | E13: 1.5
C14: Removal Cost $/Ton | E14: 194.31
C15: Highly Sensitive and Confidential

Sheet Mitchell Low Sulfur 2025
B1: Mitchell Low Sulfur - 2024 CAPP
C4: Offer | D4: Mine | E4: Quantity | F4: Coal Price | G4: Severance Tax Discount | H4: Coal Price | K4: Transportation | N4: Offered Quality | R4: Quality Adjusted Delivered Pricing
E5: Tons | F5: As Offered | H5: Less Severance Tax | I5: Severance Tax Rate | J5: Coal Source - State | K5: River / Rail | L5: MP / District | M5: Rate | N5: Btu | O5: lbs. SO2 | P5: Sulfur % | Q5: Ash % | R5: Quality Adj. | S5: Quality Adjusted | T5: Delivered | U5: Comments
S6: Delivered Cost | T6: $MMBTU
C7: Alpha Thermal Coal Sales Company | D7: Pax | E7: 300000 | F7: 95 | G7: =-F7*I7 -> -2.85 | H7: =F7+G7 -> 92.15 | I7: 0.03 | J7: WV | K7: Barge | L7: Mammoth Dock LO - Montogomery, WV | M7: 9.46 | N7: 12400 | O7: 1.6 | P7: 0.0099 | Q7: 0.1 | R7: =+((1-$E$12)*(O7*N7*$E$13)/1000000)+(($E$12*O7*N7*$E$14)/1000000) -> 3.789696908 | S7: =F7+M7+R7 -> 108.2496969 | T7: =S7/(N7/500) -> 4.364907133 | U7: Proposed purchase. 03-00-25-9M1
C12: FGD Removal Efficiency | E12: 0.9829
C13: SO2 Allowance Cost | E13: 1.5
C14: Removal Cost $/Ton | E14: 194.31
C15: Highly Sensitive and Confidential

Sheet Mitchell Low Sulfur 2024
B1: Mitchell Low Sulfur - 2024 CAPP
C4: Offer | D4: Mine | E4: Quantity | F4: Coal Price | G4: Severance Tax Discount | H4: Coal Price | K4: Transportation | N4: Offered Quality | R4: Quality Adjusted Delivered Pricing
E5: Tons | F5: As Offered | H5: Less Severance Tax | I5: Severance Tax Rate | J5: Coal Source - State | K5: River / Rail | L5: MP / District | M5: Rate | N5: Btu | O5: lbs. SO2 | P5: Sulfur % | Q5: Ash % | R5: Quality Adj. | S5: Quality Adjusted | T5: Delivered | U5: Comments
S6: Delivered Cost | T6: $MMBTU
C12: FGD Removal Efficiency | E12: 0.9829
C13: SO2 Allowance Cost | E13: 1.5
C14: Removal Cost $/Ton | E14: 194.31
C15: Highly Sensitive and Confidential

Sheet Mitchell Low Sulfur 2023
B1: Mitchell Low Sulfur - 2023 CAPP
C4: Offer | D4: Mine | E4: Quantity | F4: Coal Price | G4: Severance Tax Discount | H4: Coal Price | K4: Transportation | N4: Offered Quality | R4: Quality Adjusted Delivered Pricing
E5: Tons | F5: As Offered | H5: Less Severance Tax | I5: Severance Tax Rate | J5: Coal Source - State | K5: River / Rail | L5: MP / District | M5: Rate | N5: Btu | O5: lbs. SO2 | P5: Sulfur % | Q5: Ash % | R5: Quality Adj. | S5: Quality Adjusted | T5: Delivered | U5: Comments
S6: Delivered Cost | T6: $MMBTU
C7: Blackhawk | D7: Qunicy Dock | E7: 180000 | F7: 110 | G7: =-F7*I7 -> -3.3 | H7: =F7+G7 -> 106.7 | I7: 0.03 | J7: WV | K7: Barge | L7: Quincy | M7: 9.58 | N7: 12000 | O7: 1.67 | Q7: 0.14 | R7: =+((1-$E$12)*(O7*N7*$E$13)/1000000)+(($E$12*O7*N7*$E$14)/1000000) -> 3.827899498 | S7: =F7+M7+R7 -> 123.4078995 | T7: =S7/(N7/500) -> 5.141995812 | U7: Proposed purchase. 03-00-22-9M2
C12: FGD Removal Efficiency | E12: 0.9829
C13: SO2 Allowance Cost | E13: 1.5
C14: Removal Cost $/Ton | E14: 194.31
C15: Highly Sensitive and Confidential

Sheet Mitchell Low Sulfur 2022
B1: Mitchell Low Sulfur - 2022 CAPP
C4: Offer | D4: Mine | E4: Quantity | F4: Coal Price | G4: Severance Tax Discount | H4: Coal Price | K4: Transportation | N4: Offered Quality | R4: Quality Adjusted Delivered Pricing
E5: Tons | F5: As Offered | H5: Less Severance Tax | I5: Severance Tax Rate | J5: Coal Source - State | K5: River / Rail | L5: MP / District | M5: Rate | N5: Btu | O5: lbs. SO2 | P5: Sulfur % | Q5: Ash % | R5: Quality Adj. | S5: Quality Adjusted | T5: Delivered | U5: Comments
S6: Delivered Cost | T6: $MMBTU
C7: Alpha Thermal Coal Sales Company | D7: Pax | E7: 80000 | F7: 160 | G7: =-F7*I7 -> -4.8 | H7: =F7+G7 -> 155.2 | I7: 0.03 | J7: WV | K7: Barge | L7: Mammoth Dock LO - Montgomery, WV | M7: 8.41 | N7: 12400 | O7: 1.6 | P7: 0.00992 | Q7: 0.1 | R7: =+((1-$E$12)*(O7*N7*$E$13)/1000000)+(($E$12*O7*N7*$E$14)/1000000) -> 3.789696908 | S7: =F7+M7+R7 -> 172.1996969 | T7: =S7/(N7/500) -> 6.943536166 | U7: Proposed purchase. 03-00-22-9M2
C12: FGD Removal Efficiency | E12: 0.9829
C13: SO2 Allowance Cost | E13: 1.5
C14: Removal Cost $/Ton | E14: 194.31
C15: Highly Sensitive and Confidential
